bitfinex/quotes_ETHUSD_20220120
["timestamp","ask_amount","ask_price","bid_price","bid_amount"]
[1642689281908,0.00113684,3212.6,3212.4,0.0123862]
[1642689282108,0.00113684,3212.6,3212.4,0.09591452]
[1642689282509,0.00113684,3212.6,3212.4,0.0123862]
[1642689282711,0.00179281,3213.9,3212.6,5.6011]
[1642689282914,0.00179281,3213.9,3212.7,3.00739128]
[1642689283113,0.13146909,3213.8,3213.1,0.00777896]
[1642689283312,0.00179281,3213.7,3213.2,0.08112074]
[1642689283512,0.00179281,3213.9,3213.2,5.6]
[1642689283714,0.0580542,3214.7,3213.1,0.17591888]
[1642689283715,0.0580542,3214.7,3213.4,5.6]
[1642689283917,0.0580542,3214.7,3213.1,0.47591888]
[1642689283918,0.00472176,3213.9,3213.3,0.00227369]
[1642689284113,1.24571893,3214.4,3213.5,1.55768085]
[1642689284313,1.24571893,3214.4,3213.3,0.00227369]
[1642689284314,0.00358491,3214.3,3213.3,0.00227369]
[1642689284511,0.0058586,3214.3,3213.6,0.00170527]
[1642689284712,0.0058586,3214.3,3213.0,0.00511581]
[1642689285141,1.53465798,3213.1,3213.0,0.00511581]
[1642689285340,1.53465798,3213.1,3212.8,0.00625266]
[1642689285737,1.53465798,3213.1,3212.5,1.5570398]
[1642689285738,1.53465798,3213.1,3212.6,0.00738951]
[1642689286741,0.001,3213.7,3212.6,0.00738951]
[1642689286942,0.00458535,3213.7,3212.6,0.00738951]
[1642689287143,0.124649,3213.4,3212.6,0.00738951]
[1642689287342,1.36093084,3213.2,3212.6,0.00738951]
[1642689287942,1.31093084,3213.2,3212.6,0.00738951]
[1642689288541,1.31093084,3213.2,3212.7,0.7785161]
[1642689288987,1.31093084,3213.2,3212.8,0.00625266]
[1642689289990,2.86499188,3213.2,3212.8,0.00625266]
[1642689290391,2.86499188,3213.2,3212.7,0.00682108]
[1642689290591,0.001,3213.1,3212.7,0.00682108]
[1642689291192,0.77981,3213.1,3212.7,0.00682108]
[1642689291796,0.001,3213.1,3212.7,0.00682108]
[1642689291994,0.16264429,3214.1,3212.7,0.00682108]
[1642689292196,0.0035853,3213.5,3212.8,0.10121638]
[1642689292396,0.0035853,3214.0,3212.7,0.00682108]
[1642689292642,0.001,3214.2,3212.9,0.00568424]
[1642689292837,1.41094157,3213.7,3212.7,5.13013572]
[1642689293037,1.42987988,3213.2,3212.8,0.00625266]
[1642689293640,1.42987988,3213.2,3212.7,0.00682108]
[1642689293840,0.001,3213.1,3212.7,0.00682108]
[1642689294042,1.54312715,3213.0,3212.7,0.00682108]
[1642689294239,0.001,3212.9,3212.7,0.00682108]
[1642689295042,5.45,3212.8,3212.4,0.30682108]
[1642689295241,0.001,3212.7,3210.9,2.05669957]
[1642689295441,1.001,3212.7,3212.5,0.00113685]
[1642689295640,0.001,3212.7,3212.5,0.00113685]
[1642689295840,6.70375461,3212.6,3212.5,0.00113685]
[1642689296041,6.70475461,3212.6,3212.5,0.00113685]
[1642689296493,1.88378461,3212.6,3212.5,0.00113685]
[1642689297292,9.04282868,3212.6,3212.5,0.00113685]
[1642689297493,9.02247702,3212.6,3212.5,0.00113685]
[1642689297693,6.03378461,3212.6,3212.5,0.00113685]
[1642689297894,9.00000268,3212.6,3212.5,0.00113685]
[1642689298094,9.04918512,3212.6,3212.5,0.00113685]
[1642689298296,5.6,3212.5,3212.2,16.64988203]
[1642689298495,5.6,3212.5,3210.3,0.0234399]
[1642689298496,1.58027181,3212.3,3210.3,0.0234399]
[1642689298695,0.00860773,3212.2,3212.0,6.15e-05]
[1642689298897,0.001,3212.2,3212.1,0.00227369]
[1642689299301,18.271,3212.2,3212.1,0.00227369]
[1642689299497,5.6,3212.1,3212.0,6.15e-05]
[1642689299703,6.4027,3212.1,3212.0,6.15e-05]
[1642689300142,7.18183,3212.1,3212.0,6.15e-05]
[1642689300343,1.55827,3212.3,3212.0,6.15e-05]
[1642689300544,0.001,3212.2,3212.0,6.15e-05]
[1642689300745,0.00179273,3213.1,3212.0,6.15e-05]
[1642689300943,1.08790253,3213.3,3212.2,1.51599685]
[1642689300944,0.00284211,3212.6,3212.2,1.51599685]
[1642689301145,0.00284211,3212.6,3212.3,0.07846019]
[1642689301344,0.00179273,3213.2,3212.3,0.7787]
[1642689301345,0.00227369,3212.5,3212.3,0.7787]
[1642689301745,0.00170527,3212.4,3212.3,0.7787]
[1642689302747,0.00170527,3212.4,3212.1,1.42334021]
[1642689303147,0.00113684,3212.3,3212.1,1.42334021]
[1642689303350,0.00113684,3212.3,3212.2,8.82869235]
[1642689303551,0.00284211,3212.6,3212.2,11.47814596]
[1642689303891,1.2346,3214.4,3212.2,11.47814596]
[1642689303892,0.00179273,3214.1,3212.4,2.33525]
[1642689304089,0.00179273,3214.3,3213.2,0.01258272]
[1642689304287,0.03179273,3214.6,3214.0,1.32032415]
[1642689304488,0.03179273,3214.6,3214.0,1.27032415]
[1642689304489,0.03,3214.6,3214.0,1.27032415]
[1642689304689,0.01364216,3214.5,3214.0,1.27032415]
[1642689305091,0.01307374,3214.4,3214.0,1.27032415]
[1642689305288,0.01307374,3214.4,3213.6,11.02187498]
[1642689305488,0.03,3214.6,3213.8,0.7783246]
[1642689305489,0.01250531,3214.3,3213.8,0.7783246]
[1642689305688,0.01250531,3214.3,3213.6,9.20884523]
[1642689305899,0.01193689,3214.2,3213.6,3.9812]
[1642689306389,0.01136847,3214.1,3213.6,3.9812]
[1642689306792,0.01080004,3214.0,3213.6,3.9812]
[1642689307193,0.01023162,3213.9,3213.6,3.9812]
[1642689307398,0.01023162,3213.9,3213.4,1.181]
[1642689307643,1.19362622,3214.1,3213.0,1.19514853]
[1642689307644,0.0096632,3213.8,3213.0,1.19514853]
[1642689307842,0.0096632,3213.8,3212.4,5.0879]
[1642689308043,0.00909477,3213.7,3212.4,5.0879]
[1642689308445,0.00909477,3213.7,3212.3,7.6803]
[1642689308446,1.24740836,3212.7,3212.3,7.6803]
[1642689308644,1.24740836,3212.7,3212.2,1.2337]
[1642689308843,1.24740836,3212.7,3212.0,6.15e-05]
[1642689308844,0.00284211,3212.6,3212.0,6.15e-05]
[1642689309246,0.00227369,3212.5,3212.0,6.15e-05]
[1642689309648,0.00170527,3212.4,3212.0,6.15e-05]
[1642689310052,0.00113684,3212.3,3212.0,6.15e-05]
[1642689310452,0.00341054,3212.7,3212.0,6.15e-05]
[1642689310649,0.124686,3212.5,3211.7,2.09123648]
[1642689310852,0.00284211,3212.6,3212.1,1.53896412]
[1642689311060,0.00170527,3212.4,3212.2,2.92067435]
[1642689311250,0.00227369,3212.5,3212.2,2.92067435]
[1642689311492,0.001,3213.7,3212.1,3.79913518]
[1642689311493,0.00113684,3212.3,3212.1,3.02048048]
[1642689311693,0.001,3213.7,3212.1,1.53896412]
[1642689311694,0.00170527,3212.4,3212.1,1.53896412]
[1642689311894,0.00852635,3213.6,3211.8,1.57149399]
[1642689312094,0.00113684,3212.3,3211.9,2.64969906]
[1642689312294,1.55848,3213.7,3211.9,0.00113685]
[1642689312295,0.00795792,3213.5,3211.9,0.00113685]
[1642689312495,0.01031908,3213.6,3211.9,0.00113685]
[1642689312698,0.0073895,3213.4,3211.9,0.00113685]
[1642689312895,1.31511442,3213.2,3212.2,1.53594977]
[1642689313397,0.00568423,3213.1,3212.2,1.53594977]
[1642689313595,0.00568423,3213.1,3211.9,0.00113685]
[1642689313795,0.00511581,3213.0,3211.8,1.54104067]
[1642689313997,0.00511581,3213.0,3210.5,7.7875838]
[1642689313998,0.00511581,3213.0,3211.0,1.33589997]
[1642689313999,0.77885,3212.9,3211.0,1.33589997]
[1642689314197,5.0,3212.7,3211.1,7.5677]
[1642689314397,0.001,3212.6,3211.4,2.65272415]
[1642689314602,1.34862753,3212.0,3211.4,2.65272415]
[1642689314898,0.00341054,3212.5,3211.5,0.00227369]
[1642689315139,0.0025759,3212.5,3211.5,2.65215572]
[1642689315346,0.00200748,3212.4,3211.9,0.79139682]
[1642689315544,0.00200748,3212.4,3212.0,2.64988203]
[1642689315844,0.00179273,3213.7,3212.1,5.6]
[1642689316044,0.00179273,3213.7,3212.9,1.28112084]
[1642689316244,0.00738951,3213.6,3212.8,1.55695]
[1642689316444,0.00738951,3213.6,3212.6,0.0127423]
[1642689316645,0.00179273,3213.8,3212.6,0.0127423]
[1642689316646,0.00682108,3213.5,3212.6,0.0127423]
[1642689316845,0.00682108,3213.5,3212.3,9.33917568]
[1642689317045,0.00625266,3213.4,3212.6,1.55714]
[1642689317246,1.21372466,3213.0,3212.6,1.55714]
[1642689317444,1.21372466,3213.0,3212.3,4.2944321]
[1642689317643,1.21372466,3213.0,3212.2,2.33548]
[1642689317644,0.00341054,3212.9,3212.2,2.33548]
[1642689318045,0.00284212,3212.8,3212.1,3.98913684]
[1642689318244,0.00284212,3212.8,3212.1,0.00113684]
[1642689318443,0.0022737,3212.7,3212.1,0.00113684]
[1642689318888,1.21372466,3213.0,3212.1,0.00113684]
[1642689318889,0.00170527,3212.6,3212.1,0.00113684]
[1642689319292,0.00113685,3212.5,3212.1,0.00113684]
[1642689319693,0.00179273,3213.6,3212.2,1.55731]
[1642689319694,0.00341054,3212.9,3212.2,1.55731]
[1642689319896,0.00341054,3212.9,3212.8,3.27355661]
[1642689320095,1.2371,3214.3,3212.8,3.27355661]
[1642689320096,0.00179273,3213.5,3212.8,3.27355661]
[1642689320298,0.00179273,3213.9,3212.8,3.27355661]
[1642689320497,0.00179273,3213.9,3212.8,3.28566994]
[1642689320498,0.00682108,3213.5,3212.8,3.28566994]
[1642689320697,0.00682108,3213.5,3212.9,1.13662741]
[1642689320900,0.81293538,3213.8,3213.0,1.55673]
[1642689320901,0.00625266,3213.4,3213.0,1.55673]
[1642689321097,0.00625266,3213.4,3213.3,1.33237987]
[1642689321298,0.00179273,3213.7,3213.3,1.33237987]
[1642689321499,0.81293538,3213.8,3212.8,2.15]
[1642689321698,0.81293538,3213.8,3212.7,11.3597]
[1642689321699,0.00738951,3213.6,3212.7,11.3597]
[1642689321900,0.00738951,3213.6,3212.7,7.4015]
[1642689322103,0.00682108,3213.5,3212.7,7.4015]
[1642689322500,0.00625266,3213.4,3212.7,8.9585]
[1642689322968,1.10862943,3213.6,3212.7,8.9585]
[1642689322969,0.00568424,3213.3,3212.7,3.6356]
[1642689323363,0.00511581,3213.2,3212.7,3.6356]
[1642689323763,0.00454739,3213.1,3212.7,3.6356]
[1642689324165,0.00397897,3213.0,3212.7,3.6356]
[1642689324366,0.00397897,3213.0,3212.9,1.2356945]
[1642689324567,1.14260277,3214.0,3212.9,1.2356945]
[1642689324768,0.0035853,3213.6,3213.1,0.77849]
[1642689324967,0.00738951,3213.6,3213.1,0.77849]
[1642689325366,0.00738951,3213.6,3213.1,0.72849]
[1642689326592,0.00738951,3213.6,3212.7,5.1926]
[1642689328194,0.00738951,3213.6,3212.8,2.64889067]
[1642689328398,0.00738951,3213.6,3212.9,3.66250981]
[1642689328596,0.00738951,3213.6,3213.0,2.64889067]
[1642689328794,0.00738951,3213.6,3213.0,0.77836]
[1642689329195,0.00738951,3213.6,3212.7,5.20538075]
[1642689329396,0.00738951,3213.6,3212.8,3.06565076]
[1642689329599,0.00738951,3213.6,3212.9,2.64896551]
[1642689329796,0.00738951,3213.6,3212.7,3.6356]
[1642689330254,1.27453041,3213.3,3212.7,3.6356]
[1642689330452,1.27453041,3213.3,3212.4,1.2353]
[1642689330652,0.00511581,3213.2,3212.4,0.77867]
[1642689330854,3.07076657,3213.2,3211.9,3.774]
[1642689331157,0.00454739,3213.1,3212.0,3.6295]
[1642689331359,1.27786892,3212.3,3212.0,3.6295]
[1642689331557,1.27786892,3212.3,3212.1,0.00113684]
[1642689331960,2.34986892,3212.3,3211.8,0.00284211]
[1642689332156,2.34986892,3212.3,3211.9,0.00227369]
[1642689332356,2.34986892,3212.3,3211.4,2.65481605]
[1642689332559,2.34986892,3212.3,3211.5,2.65424762]
[1642689332758,1.072,3212.3,3211.6,2.64970024]
[1642689332961,1.072,3212.3,3211.6,2.6536792]
[1642689333157,0.001,3212.8,3211.7,2.65311078]
[1642689333368,0.00397897,3213.0,3211.7,0.00341054]
[1642689333560,1.04618807,3214.0,3211.8,0.00284211]
[1642689333561,0.0022737,3212.7,3211.8,0.00284211]
[1642689333763,0.00341054,3212.9,3212.6,3.42853]
[1642689333989,3.06565076,3213.9,3212.6,3.42853]
[1642689334190,1.04618807,3214.0,3212.6,3.42853]
[1642689334390,0.00397897,3213.0,3212.6,3.42853]
[1642689334790,0.00341054,3212.9,3212.6,3.42853]
[1642689335194,1.27231905,3213.1,3212.6,0.77853]
[1642689335596,0.00113685,3213.0,3212.6,0.77853]
[1642689338441,0.00113685,3213.0,3212.9,5.41596382]
[1642689338642,0.00113685,3213.0,3212.9,3.95]
[1642689339643,0.00113685,3213.0,3212.8,1.31955583]
[1642689340244,0.124663,3213.1,3212.9,5.0]
[1642689340746,0.00179267,3213.8,3213.1,0.77842]
[1642689341144,0.00397896,3213.7,3213.1,0.77842]
[1642689341596,0.00341054,3213.6,3213.1,0.77842]
[1642689341993,0.00284211,3213.5,3213.1,0.77842]
[1642689342194,0.00284211,3213.5,3212.8,0.7786]
[1642689342396,0.00227369,3213.4,3213.0,0.012486]
[1642689342594,0.00227369,3213.4,3212.7,2.33513]
[1642689342795,0.00170527,3213.3,3212.7,2.33513]
[1642689342995,0.00170527,3213.3,3212.8,0.00113685]
[1642689343195,3.06744343,3213.9,3212.8,0.00113685]
[1642689343196,0.00113684,3213.2,3212.8,0.00113685]
[1642689343397,0.00113684,3213.2,3212.7,0.00170527]
[1642689343398,1.50004427,3213.1,3212.7,0.00170527]
[1642689343596,0.001,3213.0,3212.7,0.00170527]
[1642689343796,0.04891904,3212.9,3212.7,0.00170527]
[1642689343997,0.04891904,3212.9,3211.8,1.55756]
[1642689343998,5.551,3212.8,3211.0,7.6461]
[1642689344300,0.77899,3212.7,3211.9,0.00625266]
[1642689344496,0.001,3212.6,3211.9,0.00625266]
[1642689344696,0.001,3212.6,3211.3,0.00795793]
[1642689344697,5.0,3212.5,3211.3,0.00795793]
[1642689344898,1.37627249,3211.7,3211.4,2.64977537]
[1642689345172,0.7507,3211.7,3211.4,2.64977537]
[1642689345372,0.7507,3211.7,3211.5,0.00682108]
[1642689345572,0.7507,3211.7,3211.6,2.64977537]
[1642689345973,0.7507,3211.7,3211.6,2.65602803]
[1642689346172,0.001,3212.1,3211.6,2.65602803]
[1642689346377,1.09060898,3213.6,3212.0,0.01265942]
[1642689346573,1.09060898,3213.6,3213.3,0.01271856]
[1642689346775,1.08881631,3213.6,3213.3,0.01271856]
[1642689346981,1.08881631,3213.6,3212.2,0.04745434]
[1642689347174,1.09060898,3213.6,3212.4,1.38750528]
[1642689347374,0.4579365,3213.8,3212.9,0.05022892]
[1642689347574,1.04618807,3214.0,3212.9,3.12975514]
[1642689347575,0.00179267,3213.7,3212.9,3.12975514]
[1642689347773,0.00861375,3213.9,3213.0,2.64897854]
[1642689347973,0.00861375,3213.9,3213.2,0.7783621]
[1642689348174,0.00625266,3213.8,3213.3,3.06565076]
[1642689348374,0.00625266,3213.8,3213.4,1.2567814]
[1642689348574,0.00568423,3213.7,3213.5,1.38458401]
[1642689348777,0.00568423,3213.7,3213.5,4.45023477]
[1642689348991,1.04618807,3214.0,3213.6,2.25]
[1642689348992,0.00179267,3213.9,3213.6,2.25]
[1642689349191,0.00179267,3213.9,3213.4,0.77833]
[1642689349192,0.124625,3213.9,3213.4,0.77833]
[1642689349394,0.124625,3213.9,3213.3,1.55665]
[1642689349395,0.13144608,3213.9,3213.3,1.55665]
[1642689349594,0.13323875,3213.9,3213.3,1.55665]
[1642689349893,0.13323875,3213.9,3212.9,3.6932]
[1642689350092,0.00684239,3213.8,3212.9,3.6932]
[1642689350293,1.39104318,3213.1,3212.8,0.13819997]
[1642689350492,1.39104318,3213.1,3212.7,0.77867]
[1642689350695,0.00170527,3213.0,3212.7,0.77867]
[1642689351091,0.00113684,3212.9,3212.7,0.77867]
[1642689351497,0.00511581,3213.6,3212.7,0.77867]
[1642689351900,1.5265511,3213.3,3212.3,3.06565076]
[1642689352104,4.62333971,3213.2,3211.8,3.7656]
[1642689352298,0.77885,3213.1,3212.4,0.00170527]
[1642689352497,0.01385727,3213.0,3211.9,0.00454739]
[1642689352756,0.01385727,3213.0,3212.0,0.00397897]
[1642689352757,0.1791,3212.7,3212.0,0.00397897]
[1642689352955,0.1791,3212.7,3211.3,2.74269818]
[1642689352956,0.291,3212.3,3211.9,0.00454739]
[1642689353155,0.001,3212.6,3211.4,0.00738951]
[1642689353156,0.48791,3212.1,3211.4,0.00738951]
[1642689353353,0.124699,3212.2,3211.5,2.66183354]
[1642689353553,1.16649379,3212.4,3211.6,2.64975784]
[1642689353755,1.16649379,3212.4,3211.6,2.6560105]
[1642689353953,1.16649379,3212.4,3211.7,2.65544208]
[1642689353954,0.3,3212.3,3211.7,2.65544208]
[1642689354154,1.16649379,3212.4,3211.7,0.00568424]
[1642689354352,1.16649379,3212.4,3211.8,2.65487533]
[1642689354353,2.63683,3212.3,3211.8,2.65487533]
[1642689354558,2.63683,3212.3,3211.0,3.9869]
[1642689354559,2.33683,3212.3,3211.3,0.00795793]
[1642689354757,2.33683,3212.3,3211.9,0.00454739]
[1642689354955,2.63683,3212.3,3211.1,0.00909478]
[1642689355153,2.63683,3212.3,3211.0,3.9869]
[1642689355154,0.001,3212.2,3211.5,0.00682108]
[1642689355355,0.00010936,3212.2,3211.6,2.6499341]
[1642689355555,0.00010936,3212.2,3210.6,3.8415]
[1642689355556,2.53292248,3212.0,3211.3,0.00795793]
[1642689355753,2.53292248,3212.0,3211.7,0.00568424]
[1642689355754,4.05239248,3212.0,3211.7,0.00568424]
[1642689355953,2.59855,3212.0,3210.7,0.01136847]
[1642689356154,1.17990802,3211.9,3211.5,0.00682108]
[1642689356420,1.17990802,3211.9,3210.7,0.01136847]
[1642689356616,0.77907,3211.7,3210.9,0.01023163]
[1642689356814,1.17990802,3211.9,3211.0,2.649983]
[1642689357016,1.17990802,3211.9,3211.2,0.01289659]
[1642689357216,1.17990802,3211.9,3211.3,2.649983]
[1642689357419,1.17990802,3211.9,3211.4,2.649983]
[1642689357617,1.17990802,3211.9,3211.4,2.65737251]
[1642689357818,0.124721,3212.0,3211.5,2.65680408]
[1642689358118,0.124721,3212.0,3211.6,2.65623566]
[1642689358318,0.124721,3212.0,3211.7,2.649983]
[1642689358519,0.124721,3212.0,3211.7,2.65566724]
[1642689358717,0.124721,3212.0,3211.8,2.65509881]
[1642689358917,0.124721,3212.0,3211.8,0.00511581]
[1642689359118,0.124721,3212.0,3211.2,1.55768]
[1642689359119,0.124721,3212.0,3211.9,0.00454739]
[1642689359318,0.124721,3212.0,3211.4,0.00738951]
[1642689359521,0.124721,3212.0,3211.5,2.64979524]
[1642689359718,1.56139081,3212.2,3211.6,2.64979524]
[1642689359922,1.56139081,3212.2,3211.7,2.64979524]
[1642689360139,0.77884,3212.8,3211.8,3.05696726]
[1642689360345,1.5576,3213.1,3211.9,2.64979524]
[1642689360541,1.5576,3213.1,3212.0,3.05696726]
[1642689360742,1.5576,3213.1,3212.1,2.64979524]
[1642689360943,1.5576,3213.1,3212.1,2.65320578]
[1642689361141,0.77990684,3212.9,3212.2,0.00284212]
[1642689361346,1.40852183,3212.8,3212.2,0.00284212]
[1642689361551,1.40852183,3212.8,3211.8,2.6546915]
[1642689361552,2.96627183,3212.8,3211.8,2.6546915]
[1642689361745,2.96627183,3212.8,3211.9,0.00454739]
[1642689362147,2.96627183,3212.8,3211.8,0.00511581]
[1642689362349,0.3,3212.7,3211.9,2.64973615]
[1642689362551,1.18122351,3212.2,3211.9,2.64973615]
[1642689362746,1.18122351,3212.2,3212.0,0.00397897]
[1642689363147,1.18122351,3212.2,3211.8,0.00511581]
[1642689363349,1.18122351,3212.2,3211.6,0.00625266]
[1642689363647,1.96009351,3212.2,3211.7,2.64974129]
[1642689364092,1.96009351,3212.2,3211.8,0.00511581]
[1642689364493,0.0121176,3212.8,3211.8,0.00511581]
[1642689364494,0.1256,3212.9,3211.8,0.00511581]
[1642689364693,2.09019215,3212.7,3211.0,0.01202851]
[1642689364993,2.09019215,3212.7,3210.5,9.5540192]
[1642689364994,0.77887,3212.2,3211.7,0.01286893]
[1642689365195,1.16139067,3212.1,3211.8,2.64981393]
[1642689365397,1.16139067,3212.1,3211.8,0.00625265]
[1642689365695,0.77887,3212.2,3211.8,0.00625265]
[1642689366297,0.77887,3212.2,3210.6,1.54099408]
[1642689366298,5.55,3212.0,3210.6,1.54099408]
[1642689366496,5.55,3212.0,3211.3,0.00284212]
[1642689366497,0.77911,3211.7,3211.3,0.00284212]
[1642689366899,0.3,3211.5,3210.8,0.00568424]
[1642689367103,0.3,3211.5,3210.9,2.64995683]
[1642689367499,0.81353192,3211.6,3211.0,0.00454739]
[1642689367801,0.81353192,3211.6,3211.0,1.56306488]
[1642689367997,0.79010802,3211.6,3211.1,2.64999904]
[1642689368197,0.79010802,3211.6,3211.3,0.01215406]
[1642689368396,0.79010802,3211.6,3211.4,2.64999904]
[1642689368596,0.79010802,3211.6,3211.4,2.65227274]
[1642689368797,0.79010802,3211.6,3211.5,1.53146155]
[1642689368996,0.80887,3214.2,3214.0,36.92401204]
[1642689369198,2.55,3214.1,3214.0,16.04910575]
[1642689369398,22.93798476,3214.1,3214.0,12.93152017]
[1642689369597,8.22386259,3214.1,3214.0,6.70259017]
[1642689369798,9.87423359,3214.1,3214.0,6.70259017]
[1642689369998,11.29481973,3214.1,3214.0,6.70259017]
[1642689370199,0.7787196,3213.7,3212.6,3.0694709]
[1642689370501,0.7787196,3213.7,3211.8,0.77871]
[1642689370502,0.7787196,3213.7,3212.7,3.7629]
[1642689370698,0.7787196,3213.7,3211.9,3.06979449]
[1642689370699,0.1256,3213.6,3211.9,6.70129449]
[1642689370899,0.83375759,3213.6,3211.9,6.70129449]
[1642689371098,0.00795792,3213.5,3211.9,6.70129449]
[1642689371298,0.00795792,3213.5,3211.9,6.68846726]
[1642689371299,1.52651589,3212.4,3211.9,6.68846726]
[1642689371499,1.52651589,3212.4,3211.5,0.00341054]
[1642689371701,1.08012684,3212.3,3211.5,0.00341054]
[1642689371898,45.73188084,3212.3,3211.0,2.64987487]
[1642689372097,0.60113684,3212.3,3211.1,3.05696726]
[1642689372299,1.39699381,3211.6,3211.2,2.64987487]
[1642689372499,0.3,3211.5,3211.2,2.65499069]
[1642689372698,0.3,3211.5,3211.3,2.65442226]
[1642689372897,0.3,3211.5,3211.4,2.64987487]
[1642689373106,1.55822,3212.1,3211.4,2.65385384]
[1642689373300,1.85822,3212.1,3211.4,0.00397897]
[1642689373500,2.15822,3212.1,3211.5,0.00341054]
[1642689373701,1.20805645,3211.5,3211.1,0.00568424]
[1642689373902,1.20805645,3211.5,3211.1,2.65575232]
[1642689374101,1.50805645,3211.5,3211.2,2.65006808]
[1642689374301,0.3,3211.5,3211.2,2.6551839]
[1642689374502,2.3372861,3212.0,3211.3,2.65461547]
[1642689374701,2.3372861,3212.0,3211.4,2.65006808]
[1642689374702,0.124743,3211.7,3211.4,2.65006808]
[1642689374902,0.124743,3211.7,3211.4,2.65404705]
[1642689375167,1.52504797,3211.8,3211.5,0.00341054]
[1642689375574,0.77916,3211.7,3211.0,2.65633803]
[1642689375776,0.77916,3211.7,3211.1,2.65576961]
[1642689375777,1.44729309,3211.2,3211.1,2.65576961]
[1642689375974,0.3,3211.5,3211.1,2.65576961]
[1642689376273,0.3,3211.5,3211.2,0.00511582]
[1642689376675,0.3,3211.5,3210.5,0.00909478]
[1642689376877,1.07908,3212.0,3210.6,2.65031511]
[1642689376878,1.53829826,3211.6,3210.6,2.65031511]
[1642689377074,3.70573825,3211.9,3210.6,2.65031511]
[1642689377075,4.00573825,3211.9,3210.6,2.65031511]
[1642689377275,4.00573825,3211.9,3210.7,0.00795793]
[1642689377474,4.00573825,3211.9,3210.8,2.65031511]
[1642689377475,4.00241355,3211.9,3210.8,2.65031511]
[1642689377875,0.3,3211.9,3210.9,0.00682109]
[1642689378076,1.43940284,3211.9,3211.1,1.1652139]
[1642689378279,1.43940284,3211.9,3210.9,0.00682109]
[1642689378476,1.43940284,3211.9,3211.2,0.00511582]
[1642689378677,1.43940284,3211.9,3210.7,0.00795793]
[1642689378892,1.43940284,3211.9,3211.1,0.00568424]
[1642689379093,1.43940284,3211.9,3210.7,0.00795793]
[1642689379297,1.43940284,3211.9,3210.9,1.11879647]
[1642689379492,1.43940284,3211.9,3211.0,2.650232]
[1642689379693,1.43940284,3211.9,3211.0,2.65648466]
[1642689379900,1.43940284,3211.9,3211.1,0.00568424]
[1642689380301,0.77917,3211.5,3210.5,3.41891036]
[1642689380500,0.77917,3211.5,3210.6,2.65034832]
[1642689380501,0.3,3211.4,3210.6,2.65034832]
[1642689380700,0.30227369,3211.4,3210.7,2.65034832]
[1642689380906,0.00170527,3211.3,3210.6,0.0022737]
[1642689381099,0.00170527,3211.3,3210.8,0.00113685]
[1642689381100,1.18127043,3211.3,3210.8,0.00113685]
[1642689381307,0.00113684,3211.2,3210.8,0.00113685]
[1642689381600,0.00113684,3211.2,3210.7,0.00170527]
[1642689381800,0.78040684,3211.2,3210.7,0.00170527]
[1642689382001,0.00113684,3211.2,3210.7,3.46436297]
[1642689382201,0.00113684,3211.2,3210.8,2.65050599]
[1642689382402,0.00113684,3211.2,3210.9,2.65050599]
[1642689382640,0.00113684,3211.2,3210.8,0.00113685]
[1642689383041,0.00113684,3211.2,3210.7,1.14256665]
[1642689383240,0.00113684,3211.2,3210.8,2.6506177]
[1642689383443,0.00113684,3211.2,3210.8,2.65175455]
[1642689384247,0.00113684,3211.2,3210.8,0.00113685]
[1642689386998,2.33907464,3211.2,3210.8,0.00113685]
[1642689387398,0.124,3211.1,3210.8,0.00113685]
[1642689387599,0.03864068,3211.0,3210.8,0.00113685]
[1642689387797,33.222033,3211.0,3210.8,0.00113685]
[1642689387998,36.443658,3211.0,3210.8,0.00113685]
[1642689388196,1.2854,3211.1,3210.8,0.00113685]
[1642689388197,16.1208381,3210.9,3210.8,0.00113685]
[1642689388397,16.1208381,3210.9,3210.7,7.0]
[1642689388398,6.3794839,3210.8,3210.7,7.0]
[1642689388602,6.3794839,3210.8,3210.7,5.07924818]
[1642689388800,1.5590487,3210.6,3209.5,3.46503591]
[1642689389001,1.5590487,3210.6,3209.6,2.65381007]
[1642689389202,69.807974,3210.8,3210.0,1.21092734]
[1642689389203,0.1456,3210.8,3210.0,1.21092734]
[1642689389401,0.12,3210.7,3210.1,0.00237821]
[1642689389602,0.9067076,3210.7,3210.1,2.65520714]
[1642689389802,0.1392,3210.8,3210.5,1.36231974]
[1642689390149,4.15,3210.9,3210.5,1.36231974]
[1642689390150,4.15,3210.9,3210.6,2.65197802]
[1642689390348,0.124747,3210.8,3210.6,2.65197802]
[1642689390548,0.124747,3210.8,3210.6,4.20836117]
[1642689390748,0.124747,3210.8,3210.7,2.65084117]
[1642689390948,0.124747,3210.8,3210.7,2.65071588]
[1642689391151,0.124747,3210.8,3210.7,2.65071887]
[1642689391347,0.00170527,3211.1,3210.7,2.65071887]
[1642689391752,0.00113685,3211.0,3210.7,2.65071887]
[1642689391954,0.00113685,3211.0,3210.9,5.61292747]
[1642689392154,1.5578298,3212.8,3211.0,1.32648651]
[1642689392155,0.00454739,3211.6,3211.0,1.32648651]
[1642689392353,2.20689897,3212.2,3211.1,6.11337657]
[1642689392559,1.5578298,3212.8,3211.2,2.65071887]
[1642689392761,0.00738951,3212.1,3211.5,0.77882]
[1642689393160,0.00682108,3212.0,3211.9,4.43688477]
[1642689393357,0.00682108,3212.0,3211.9,5.83127482]
[1642689393759,0.00595798,3212.0,3211.9,5.83127482]
[1642689394205,0.00595798,3212.0,3211.9,9.22163006]
[1642689394406,0.00595798,3212.0,3211.7,5.15]
[1642689394407,0.00595798,3212.0,3211.7,1.2099]
[1642689394706,1.33768935,3212.9,3211.5,0.27639994]
[1642689394707,0.00538956,3211.9,3211.5,0.27639994]
[1642689394906,0.00538956,3211.9,3211.5,0.13819997]
[1642689395105,0.00482114,3211.8,3211.3,3.8253]
[1642689395506,0.00425271,3211.7,3211.3,3.8253]
[1642689395912,0.00368429,3211.6,3211.3,3.8253]
[1642689396313,0.00311587,3211.5,3211.3,3.8253]
[1642689396507,0.00311587,3211.5,3211.0,0.00341055]
[1642689396707,0.7791526,3211.6,3211.0,0.00341055]
[1642689396708,0.00254744,3211.4,3211.0,0.00341055]
[1642689397108,0.4536,3211.5,3211.0,0.00341055]
[1642689397109,0.00197902,3211.3,3211.0,0.00341055]
[1642689397308,0.00197902,3211.3,3210.6,0.00113685]
[1642689397508,0.77945,3211.1,3210.6,0.00113685]
[1642689397746,0.77945,3211.1,3210.4,0.00313679]
[1642689397747,1.4565737,3211.0,3210.4,0.00313679]
[1642689397950,1.4565737,3211.0,3209.9,2.65123525]
[1642689397951,0.3,3210.6,3209.9,2.65123525]
[1642689398148,0.1488,3210.9,3210.0,0.00237821]
[1642689398347,1.86030059,3211.2,3210.0,0.00237821]
[1642689398348,0.1184,3210.5,3210.0,6.08865299]
[1642689398550,0.9042358,3210.8,3210.1,2.65616957]